fUST/lending_fUST_20250102
["ID","MTS","AMOUNT","RATE_DAILY","PERIOD"]
[347396794,1735762262585,-500.0,0.00020273,3]
[347396795,1735762262595,-500.0,0.00020273,3]
[347396796,1735762262604,-2096.1,0.00020273,3]
[347396797,1735762262613,-564.32076438,0.00020273,3]
[347396798,1735762262623,-532.59,0.00020273,3]
[347396799,1735762262632,-500.0,0.00020273,3]
[347396800,1735762262644,-533.26,0.00020273,3]
[347396801,1735762262653,-670.08,0.00020273,3]
[347396802,1735762262663,-1400.03,0.00020273,3]
[347396803,1735762262672,-2860.09,0.00020273,3]
[347396804,1735762262681,-500.0,0.00020273,3]
[347396805,1735762262690,-500.0,0.00020273,3]
[347396806,1735762262700,-500.0,0.00020273,3]
[347396807,1735762262709,-500.0,0.00020273,3]
[347396808,1735762262718,-1078.84,0.00020273,3]
[347396809,1735762262729,-2801.12,0.00020273,3]
[347396810,1735762262737,-500.0,0.00020273,3]
[347396811,1735762262747,-2022.26,0.00020273,3]
[347396812,1735762262756,-2109.38,0.00020273,3]
[347396813,1735762262765,-627.17,0.00020273,3]
[347396814,1735762262774,-500.0,0.00020273,3]
[347396815,1735762262783,-500.0,0.00020273,3]
[347396816,1735762262792,-500.0,0.00020273,3]
[347396817,1735762262802,-51202.32,0.00020273,3]
[347396818,1735762262811,-1362.14,0.00020273,3]
[347396819,1735762262820,-500.0,0.00020273,3]
[347396820,1735762262829,-500.0,0.00020273,3]
[347396821,1735762262839,-499.0,0.00020273,2]
[347396822,1735762262848,-1900.83,0.00020273,3]
[347396823,1735762262857,-500.0,0.00020273,3]
[347396824,1735762262866,-4433.59,0.00020273,3]
[347396825,1735762262876,-500.0,0.00020273,3]
[347396826,1735762262885,-500.0,0.00020273,3]
[347396827,1735762262894,-4295.3,0.00020273,3]
[347396828,1735762262906,-1604.46,0.00020273,3]
[347396829,1735762262915,-4537.0,0.00020273,3]
[347396830,1735762263003,-3719.22,0.00020273,3]
[347396831,1735762263014,-503.50687907,0.00020273,3]
[347396832,1735762263023,-594.6,0.00020273,3]
[347396833,1735762263033,-500.0,0.00020273,3]
[347396834,1735762263042,-706.11,0.00020273,3]
[347396835,1735762263052,-500.0,0.00020273,3]
[347396836,1735762263061,-964.41,0.00020273,3]
[347396837,1735762263070,-500.0,0.00020273,3]
[347396838,1735762263079,-500.0,0.00020273,3]
[347396839,1735762263088,-2603.89,0.00020273,3]
[347396840,1735762263097,-500.0,0.00020273,3]
[347396841,1735762263107,-974.85,0.00020273,3]
[347396842,1735762263116,-2357.85,0.00020273,3]
[347396843,1735762263125,-500.0,0.00020273,3]
[347396844,1735762263134,-500.0,0.00020273,3]
[347396845,1735762263144,-2455.78,0.00020273,3]
[347396846,1735762263153,-1032.36,0.00020273,3]
[347396847,1735762263163,-591.98,0.00020273,3]
[347396848,1735762263172,-1045.73,0.00020273,3]
[347396849,1735762263182,-250.68453495,0.00020296,2]
[347396850,1735762263191,-612.0,0.00020296,2]
[347396851,1735762263200,-612.0,0.00020296,2]
[347396852,1735762263211,-500.0,0.00020296,2]
[347396853,1735762263220,-5939.25664467,0.00020298,2]
[347396854,1735762263231,-5000.0,0.00020298,2]
[347396855,1735762263241,-5000.0,0.00020298,2]
[347396856,1735762263251,-5000.0,0.00020298,2]
[347396857,1735762263261,-5000.0,0.00020298,2]
[347396858,1735762263270,-5000.0,0.00020298,2]
[347396859,1735762263280,-5000.0,0.00020298,2]
[347396860,1735762263289,-5000.0,0.00020298,2]
[347396861,1735762263299,-5000.0,0.00020298,2]
[347396862,1735762263308,-5000.0,0.00020298,2]
[347396863,1735762263318,-9996.92393069,0.00020358,2]
[347396864,1735762263328,-5000.0,0.00020358,2]
[347396865,1735762263337,-5000.0,0.00020358,2]
[347396866,1735762263347,-5000.0,0.00020358,2]
[347396867,1735762263357,-5000.0,0.00020358,2]
[347396868,1735762263366,-151.0,0.0002036,5]
[347396869,1735762263376,-3675.89664103,0.00020372,2]
[347396870,1735762263386,-135433.15142506,0.000205,2]
[347396871,1735762263396,-51980.7718043,0.000205,2]
[347396872,1735762263405,-618.0,0.000205,2]
[347396873,1735762263415,-254.24491,0.00020521,2]
[347396874,1735762263425,-519.1,0.00020547,3]
[347396875,1735762263435,-500.0,0.00020547,3]
[347396876,1735762263444,-500.0,0.00020547,3]
[347396877,1735762263453,-500.0,0.00020547,3]
[347396878,1735762263462,-500.0,0.00020547,3]
[347396879,1735762263471,-500.0,0.00020547,3]
[347396880,1735762263482,-546.81883841,0.00020547,3]
[347396881,1735762263491,-1126.45,0.00020547,3]
[347396882,1735762263500,-524.1,0.00020547,3]
[347396883,1735762263510,-324.6845326,0.00020547,3]
[347396884,1735762263519,-500.0,0.00020547,3]
[347396885,1735762263529,-500.0,0.00020547,3]
[347396886,1735762263538,-508.62535663,0.00020547,3]
[347396887,1735762263547,-500.0,0.00020547,3]
[347396888,1735762263556,-500.0,0.00020547,3]
[347396889,1735762263566,-500.0,0.00020547,3]
[347396890,1735762263576,-500.0,0.00020547,3]
[347396891,1735762263587,-500.0,0.00020547,3]
[347396892,1735762263598,-500.0,0.00020547,3]
[347396893,1735762263610,-500.0,0.00020547,3]
[347396894,1735762263620,-500.0,0.00020547,3]
[347396895,1735762263630,-500.0,0.00020547,3]
[347396896,1735762263639,-500.0,0.00020547,3]
[347396897,1735762263649,-598.44,0.00020547,3]
[347396898,1735762263658,-500.0,0.00020547,3]
[347396899,1735762263667,-527.169694,0.00020547,3]
[347396900,1735762263677,-500.0,0.00020547,3]
[347396901,1735762263686,-500.0,0.00020547,3]
[347396902,1735762263696,-500.0,0.00020547,3]
[347396903,1735762263705,-3600.72,0.00020547,2]
[347396904,1735762263715,-500.0,0.00020547,3]
[347396905,1735762263726,-654.64,0.00020547,3]
[347396906,1735762263735,-966.4,0.00020547,3]
[347396907,1735762263745,-981.55,0.00020547,3]
[347396908,1735762263754,-500.0,0.00020547,3]
[347396909,1735762263764,-500.0,0.00020547,3]
[347396910,1735762263773,-1514.27,0.00020547,3]
[347396911,1735762263783,-500.0,0.00020547,3]
[347396912,1735762263792,-600.02,0.00020547,3]
[347396913,1735762263801,-979.73,0.00020547,3]
[347396914,1735762263810,-561.13,0.00020547,3]
[347396915,1735762263820,-819.24,0.00020547,3]
[347396916,1735762263830,-500.0,0.00020547,3]
[347396917,1735762263839,-445.69950457,0.00020547,3]
[347396918,1735762263848,-500.0,0.00020547,3]
[347396919,1735762263857,-500.0,0.00020547,3]
[347396920,1735762263867,-506.65,0.00020547,3]
[347396921,1735762263876,-500.0,0.00020547,3]
[347396922,1735762263885,-500.0,0.00020547,3]
[347396923,1735762263895,-902.98,0.00020547,3]
[347396924,1735762263905,-500.0,0.00020547,3]
[347396925,1735762263917,-886.37,0.00020547,3]
[347396926,1735762263926,-1261.15,0.00020547,3]
[347396927,1735762263935,-500.0,0.00020547,3]
[347396928,1735762263944,-760.81,0.00020547,3]
[347396929,1735762263954,-500.0,0.00020547,3]
[347396930,1735762263964,-725.49,0.00020547,3]
[347396931,1735762263973,-500.0,0.00020547,3]
[347396932,1735762263985,-500.0,0.00020547,3]
[347396933,1735762263994,-500.0,0.00020547,3]
[347396934,1735762264004,-1874.01,0.00020547,3]
[347396935,1735762264013,-500.0,0.00020547,3]
[347396936,1735762264022,-500.0,0.00020547,3]
[347396937,1735762264032,-500.0,0.00020547,3]
[347396938,1735762264042,-1630.03,0.00020547,3]
[347396939,1735762264052,-500.0,0.00020547,3]
[347396940,1735762264061,-629.30274489,0.00020547,3]
[347396941,1735762264070,-536.63,0.00020547,3]
[347396942,1735762264079,-500.0,0.00020547,3]
[347396943,1735762264089,-500.0,0.00020547,3]
[347396944,1735762264098,-851.76,0.00020547,3]
[347396945,1735762264107,-1005.09081492,0.00020547,2]
[347396946,1735762264117,-500.0,0.00020547,3]
[347396947,1735762264126,-500.0,0.00020547,3]
[347396948,1735762264136,-500.0,0.00020547,3]
[347396949,1735762264145,-500.0,0.00020547,3]
[347396950,1735762264155,-1500.23,0.00020547,3]
[347396951,1735762264164,-200.0,0.00020547,3]
[347396952,1735762264174,-500.0,0.00020547,3]
[347396953,1735762264184,-1089.57,0.00020547,3]
[347396954,1735762264193,-500.0,0.00020547,3]
[347396955,1735762264203,-500.0,0.00020547,3]
[347396956,1735762264289,-408.84287638,0.00020547,3]
[347396957,1735762264299,-500.0,0.00020547,3]
[347396958,1735762264309,-500.0,0.00020547,3]
[347396959,1735762264319,-500.0,0.00020547,3]
[347396960,1735762264328,-500.0,0.00020547,3]
[347396961,1735762264337,-500.0,0.00020547,3]
[347396962,1735762264346,-1120.0,0.00020547,3]
[347396963,1735762264356,-500.0,0.00020547,3]
[347396964,1735762264366,-425.1570082,0.00020547,3]
[347396965,1735762264376,-2032.53,0.00020547,3]
[347396966,1735762264385,-641.29,0.00020547,3]
[347396967,1735762264395,-500.0,0.00020547,3]
[347396968,1735762264405,-500.0,0.00020547,3]
[347396969,1735762264415,-500.0,0.00020547,3]
[347396970,1735762264424,-171.12425533,0.00020547,3]
[347396971,1735762264434,-500.0,0.00020547,3]
[347396972,1735762264444,-976.67,0.00020547,3]
[347396973,1735762264454,-500.0,0.00020547,3]
[347396974,1735762264464,-619.68565733,0.00020547,3]
[347396975,1735762264476,-777.31,0.00020547,3]
[347396976,1735762264486,-6757.83,0.00020547,3]
[347396977,1735762264496,-500.0,0.00020547,3]
[347396978,1735762264505,-500.0,0.00020547,3]
[347396979,1735762264515,-847.67,0.00020547,3]
[347396980,1735762264525,-500.0,0.00020547,3]
[347396981,1735762264534,-500.0,0.00020547,3]
[347396982,1735762264544,-651.91,0.00020547,2]
[347396983,1735762264554,-500.0,0.00020547,3]
[347396984,1735762264563,-575.27,0.00020547,3]
[347396985,1735762264573,-500.0,0.00020547,3]
[347396986,1735762264582,-500.0,0.00020547,3]
[347396987,1735762264591,-500.0,0.00020547,3]
[347396988,1735762264601,-500.0,0.00020547,3]
[347396989,1735762264610,-1295.31,0.00020547,3]
[347396990,1735762264620,-500.0,0.00020547,3]
[347396991,1735762264630,-500.0,0.00020547,3]
[347396992,1735762264639,-510.06007427,0.00020547,3]
[347396993,1735762264648,-500.0,0.00020547,3]
[347396994,1735762264657,-500.0,0.00020547,3]
[347396995,1735762264666,-724.32,0.00020547,3]
[347396996,1735762264676,-1999.84,0.00020547,3]
[347396997,1735762264686,-2289.08,0.00020547,3]
[347396998,1735762264695,-509.69,0.00020547,3]
[347396999,1735762264704,-500.0,0.00020547,3]
[347397000,1735762264714,-1240.54,0.00020547,3]
[347397001,1735762264731,-645.25239008,0.00020547,3]
[347397002,1735762264745,-528.56,0.00020547,3]
[347397003,1735762264755,-500.0,0.00020547,3]
[347397004,1735762264765,-1141.64,0.00020547,3]
[347397005,1735762264775,-500.0,0.00020547,3]
[347397006,1735762264785,-934.03,0.00020547,3]
[347397007,1735762264795,-2155.3,0.00020547,3]
[347397008,1735762264805,-500.0,0.00020547,3]
[347397009,1735762264814,-1199.69,0.00020547,3]
[347397010,1735762264825,-500.0,0.00020547,3]
[347397011,1735762264835,-1144.79,0.00020547,3]
[347397012,1735762264844,-772.07,0.00020547,3]
[347397013,1735762264854,-12655.53,0.00020547,3]
[347397014,1735762264863,-500.0,0.00020547,3]
[347397015,1735762264873,-517.7312564,0.00020547,3]
[347397016,1735762264882,-191.45134348,0.00020547,3]
[347397017,1735762264892,-1274.8,0.00020547,3]
[347397018,1735762264902,-500.0,0.00020547,3]
[347397019,1735762264915,-500.0,0.00020547,3]
[347397020,1735762264925,-500.0,0.00020547,3]
[347397021,1735762264935,-1388.63,0.00020547,3]
[347397022,1735762264944,-536.46,0.00020547,3]
[347397023,1735762264954,-500.0,0.00020547,3]
[347397024,1735762264964,-1059.01,0.00020547,3]
[347397025,1735762264974,-1566.1,0.00020547,3]
[347397026,1735762264984,-500.0,0.00020547,3]
[347397027,1735762264993,-1187.73,0.00020547,3]
[347397028,1735762265003,-521.2092213,0.00020547,3]
[347397029,1735762265013,-500.0,0.00020547,3]
[347397030,1735762265024,-615.74,0.00020547,3]
[347397031,1735762265034,-3964.7,0.00020547,3]
[347397032,1735762265043,-565.38,0.00020547,3]
[347397033,1735762265053,-10431.83,0.00020547,3]
[347397034,1735762265063,-766.62,0.00020547,3]
[347397035,1735762265074,-551.68,0.00020547,3]
[347397036,1735762265084,-500.0,0.00020547,3]
[347397037,1735762265093,-500.0,0.00020547,3]
[347397038,1735762265105,-367.24951647,0.00020547,3]
[347397039,1735762265115,-917.42,0.00020547,3]
[347397040,1735762265124,-1669.63,0.00020547,3]
[347397041,1735762265134,-6923.28,0.00020547,3]
[347397042,1735762265144,-500.0,0.00020547,3]
[347397043,1735762265153,-742.45,0.00020547,3]
[347397044,1735762265162,-504.42641024,0.00020547,3]
[347397045,1735762265172,-500.0,0.00020547,3]
[347397046,1735762265181,-1388.14,0.00020547,3]
[347397047,1735762265190,-500.0,0.00020547,3]
[347397048,1735762265199,-500.0,0.00020547,3]
[347397049,1735762265211,-2096.1,0.00020547,3]
[347397050,1735762265223,-532.59,0.00020547,3]
[347397051,1735762265233,-500.0,0.00020547,3]
[347397052,1735762265243,-533.26,0.00020547,3]
[347397053,1735762265252,-1400.03,0.00020547,3]
[347397054,1735762265262,-670.08,0.00020547,3]
[347397055,1735762265271,-2860.09,0.00020547,3]
[347397056,1735762265281,-500.0,0.00020547,3]
[347397057,1735762265290,-500.0,0.00020547,3]
[347397058,1735762265300,-500.0,0.00020547,3]
[347397059,1735762265309,-500.0,0.00020547,3]
[347397060,1735762265318,-1078.84,0.00020547,3]
[347397061,1735762265328,-2801.12,0.00020547,3]
[347397062,1735762265338,-500.0,0.00020547,3]
[347397063,1735762265347,-2022.26,0.00020547,3]
[347397064,1735762265357,-2109.38,0.00020547,3]
[347397065,1735762265367,-627.17,0.00020547,3]
[347397066,1735762265376,-500.0,0.00020547,3]
[347397067,1735762265386,-500.0,0.00020547,3]
[347397068,1735762265395,-500.0,0.00020547,3]
[347397069,1735762265405,-51202.32,0.00020547,3]
[347397070,1735762265415,-1362.14,0.00020547,3]
[347397071,1735762265424,-500.0,0.00020547,3]
[347397072,1735762265540,-357.09431861,0.00020547,3]
[347397073,1735762265549,-1900.83,0.00020547,3]
[347397074,1735762265558,-500.0,0.00020547,3]
[347397075,1735762265567,-4433.59,0.00020547,3]
[347397076,1735762265576,-500.0,0.00020547,3]
[347397077,1735762265585,-500.0,0.00020547,3]
[347397078,1735762265594,-4295.3,0.00020547,3]
[347397079,1735762265604,-1604.46,0.00020547,3]
[347397080,1735762265613,-4537.0,0.00020547,3]
[347397081,1735762265623,-3719.22,0.00020547,3]
[347397082,1735762265632,-594.6,0.00020547,3]
[347397083,1735762265642,-706.11,0.00020547,3]
[347397084,1735762265651,-500.0,0.00020547,3]
[347397085,1735762265661,-964.41,0.00020547,3]
[347397086,1735762265670,-500.0,0.00020547,3]
[347397087,1735762265679,-500.0,0.00020547,3]
[347397088,1735762265689,-2603.89,0.00020547,3]
[347397089,1735762265698,-500.0,0.00020547,3]
[347397090,1735762265708,-974.85,0.00020547,3]
[347397091,1735762265717,-2357.85,0.00020547,3]
[347397092,1735762265727,-500.0,0.00020547,3]
[347397093,1735762265736,-500.0,0.00020547,3]
[347397094,1735762265745,-2455.78,0.00020547,3]
[347397095,1735762265754,-1032.36,0.00020547,3]
[347397096,1735762265763,-591.98,0.00020547,3]
[347397097,1735762265773,-170.14,0.00020547,2]
[347397098,1735762265782,-3013.43414673,0.0002055,7]
[347397099,1735762265791,-3013.43414673,0.0002055,7]
[347397100,1735762265800,-3013.43414673,0.0002055,7]
[347397101,1735762265809,-3013.43414673,0.0002055,7]
[347397102,1735762265819,-3013.43414673,0.0002055,7]
[347397103,1735762265828,-3013.43414673,0.0002055,7]
[347397104,1735762265837,-3013.43414673,0.0002055,7]
[347397105,1735762265847,-3013.43414673,0.0002055,7]
[347397106,1735762265856,-3013.43414673,0.0002055,7]
[347397107,1735762265865,-3013.43414673,0.0002055,7]
[347397108,1735762265874,-3013.43414673,0.0002055,7]
[347397109,1735762265884,-3013.43414673,0.0002055,7]
[347397110,1735762265894,-3013.43414673,0.0002055,7]
[347397111,1735762265903,-3013.43414673,0.0002055,7]
[347397112,1735762265915,-3013.43414673,0.0002055,7]
[347397113,1735762265925,-3013.43414673,0.0002055,7]
[347397114,1735762265934,-3013.43414673,0.0002055,7]
[347397115,1735762265944,-3013.43414673,0.0002055,7]
[347397116,1735762265954,-3013.43414673,0.0002055,7]
[347397117,1735762265965,-3013.43,0.0002055,7]
[347397118,1735762265974,-4520.1512201,0.0002055,7]
[347397119,1735762265985,-4520.1512201,0.0002055,7]
[347397120,1735762265995,-4520.1512201,0.0002055,7]
[347397121,1735762266004,-4520.1512201,0.0002055,7]
[347397122,1735762266014,-4520.1512201,0.0002055,7]
[347397123,1735762266023,-4520.1512201,0.0002055,7]
[347397124,1735762266033,-4520.1512201,0.0002055,7]
[347397125,1735762266053,-4520.1512201,0.0002055,7]
[347397126,1735762266072,-4520.1512201,0.0002055,7]
[347397127,1735762266091,-4520.1512201,0.0002055,7]
[347397128,1735762266111,-4520.1512201,0.0002055,7]
[347397129,1735762266132,-4520.1512201,0.0002055,7]
[347397130,1735762266150,-4520.1512201,0.0002055,7]
[347397131,1735762266173,-4520.1512201,0.0002055,7]
[347397132,1735762266188,-4520.1512201,0.0002055,7]
[347397133,1735762266205,-4520.1512201,0.0002055,7]
[347397134,1735762266225,-4520.1512201,0.0002055,7]
[347397135,1735762266244,-4520.1512201,0.0002055,7]
[347397136,1735762266258,-4520.1512201,0.0002055,7]
[347397137,1735762266279,-4520.15,0.0002055,7]
[347397138,1735762266293,-155.16275429,0.0002055,7]
[347397139,1735762266310,-155.16275429,0.0002055,7]
[347397140,1735762266323,-155.16275429,0.0002055,7]
[347397141,1735762266343,-155.16275429,0.0002055,7]
[347397142,1735762266360,-155.16275429,0.0002055,7]
[347397143,1735762266376,-155.16275429,0.0002055,7]
[347397144,1735762266393,-155.16275429,0.0002055,7]
[347397145,1735762266409,-155.16275429,0.0002055,7]
[347397146,1735762266425,-155.16275429,0.0002055,7]
[347397147,1735762266441,-155.16275429,0.0002055,7]
[347397148,1735762266457,-155.16275429,0.0002055,7]
[347397149,1735762266473,-155.16275429,0.0002055,7]
[347397150,1735762266489,-155.16275429,0.0002055,7]
[347397151,1735762266505,-155.16275429,0.0002055,7]
[347397152,1735762266519,-155.16275429,0.0002055,7]
[347397153,1735762266535,-155.16275429,0.0002055,7]
[347397154,1735762266550,-155.16275429,0.0002055,7]
[347397155,1735762266565,-155.16275429,0.0002055,7]
[347397156,1735762266580,-155.16,0.0002055,7]
[347397157,1735762266595,-221.10692487,0.0002055,7]
[347397158,1735762266611,-221.10692487,0.0002055,7]
[347397159,1735762266626,-221.10692487,0.0002055,7]
[347397160,1735762266642,-221.10692487,0.0002055,7]
[347397161,1735762266656,-221.10692487,0.0002055,7]
[347397162,1735762266671,-221.10692487,0.0002055,7]
[347397163,1735762266686,-221.10692487,0.0002055,7]
[347397164,1735762266701,-221.10692487,0.0002055,7]
[347397165,1735762266718,-221.10692487,0.0002055,7]
[347397166,1735762266732,-221.10692487,0.0002055,7]
[347397167,1735762266747,-221.10692487,0.0002055,7]
[347397168,1735762266762,-221.10692487,0.0002055,7]
[347397169,1735762266777,-221.10692487,0.0002055,7]
[347397170,1735762266793,-221.10692487,0.0002055,7]
[347397171,1735762266807,-221.10692487,0.0002055,7]
[347397172,1735762266822,-221.10692487,0.0002055,7]
[347397173,1735762266837,-221.10692487,0.0002055,7]
[347397174,1735762266852,-221.10692487,0.0002055,7]
[347397175,1735762266866,-221.10692487,0.0002055,7]
[347397176,1735762266881,-221.1,0.0002055,7]
[347397177,1735762266896,-612.0,0.0002057,2]
[347397178,1735762266913,-612.0,0.0002057,2]
[347397179,1735762267037,-500.0,0.0002057,2]
[347397180,1735762267046,-166.4825,0.00020589,2]
[347397181,1735762267055,-300.0,0.000206,9]
[347397182,1735762267064,-420.0,0.00020602,2]
[347397183,1735762267073,-151.0,0.00020605,5]
[347397184,1735762267082,-6881.01364455,0.0002061,2]
[347397185,1735762267091,-2000.0,0.000207,2]
[347397186,1735762267100,-254.24491,0.00020712,2]
[347397187,1735762267109,-23440.03794703,0.0002079,2]
[347397188,1735762267118,-519.1,0.00020821,3]
[347397189,1735762267127,-500.0,0.00020821,3]
[347397190,1735762267136,-500.0,0.00020821,3]
[347397191,1735762267145,-500.0,0.00020821,3]
[347397192,1735762267154,-500.0,0.00020821,3]
[347397193,1735762267163,-500.0,0.00020821,3]
[347397194,1735762267172,-1126.45,0.00020821,3]
[347397195,1735762267182,-500.0,0.00020821,3]
[347397196,1735762267191,-500.0,0.00020821,3]
[347397197,1735762267201,-500.0,0.00020821,3]
[347397198,1735762267210,-500.0,0.00020821,3]
[347397199,1735762267219,-500.0,0.00020821,3]
[347397200,1735762267229,-500.0,0.00020821,3]
[347397201,1735762267238,-504.44556353,0.00020821,3]
[347397202,1735762267247,-500.0,0.00020821,3]
[347397203,1735762267257,-220.14414869,0.00020821,3]
[347397204,1735762267266,-500.0,0.00020821,3]
[347397205,1735762267276,-500.0,0.00020821,3]
[347397206,1735762267285,-598.44,0.00020821,3]
[347397207,1735762267294,-500.0,0.00020821,3]
[347397208,1735762267304,-500.0,0.00020821,3]
[347397209,1735762267313,-500.0,0.00020821,3]
[347397210,1735762267322,-500.0,0.00020821,3]
[347397211,1735762267331,-3600.72,0.00020821,2]
[347397212,1735762267341,-500.0,0.00020821,3]
[347397213,1735762267350,-654.64,0.00020821,3]
[347397214,1735762267360,-966.4,0.00020821,3]
[347397215,1735762267369,-981.55,0.00020821,3]
[347397216,1735762267379,-500.0,0.00020821,3]
[347397217,1735762267389,-500.0,0.00020821,3]
[347397218,1735762267398,-1514.27,0.00020821,3]
[347397219,1735762267407,-500.0,0.00020821,3]
[347397220,1735762267417,-600.02,0.00020821,3]
[347397221,1735762267426,-979.73,0.00020821,3]
[347397222,1735762267436,-561.13,0.00020821,3]
[347397223,1735762267445,-819.24,0.00020821,3]
[347397224,1735762267454,-500.0,0.00020821,3]
[347397225,1735762267463,-500.0,0.00020821,3]
[347397226,1735762267473,-506.65,0.00020821,3]
[347397227,1735762267484,-500.0,0.00020821,3]
[347397228,1735762267494,-500.0,0.00020821,3]
[347397229,1735762267503,-902.98,0.00020821,3]
[347397230,1735762267512,-500.0,0.00020821,3]
[347397231,1735762267521,-886.37,0.00020821,3]
[347397232,1735762267531,-1261.15,0.00020821,3]
[347397233,1735762267541,-500.0,0.00020821,3]
[347397234,1735762267550,-760.81,0.00020821,3]
[347397235,1735762267560,-500.0,0.00020821,3]
[347397236,1735762267569,-725.49,0.00020821,3]
[347397237,1735762267579,-500.0,0.00020821,3]
[347397238,1735762267589,-625.79010291,0.00020821,3]
[347397239,1735762267598,-500.0,0.00020821,3]
[347397240,1735762267608,-1874.01,0.00020821,3]
[347397241,1735762267618,-507.30722578,0.00020821,3]
[347397242,1735762267627,-500.0,0.00020821,3]
[347397243,1735762267636,-500.0,0.00020821,3]
[347397244,1735762267645,-1630.03,0.00020821,3]
[347397245,1735762267656,-500.0,0.00020821,3]
[347397246,1735762267665,-536.63,0.00020821,3]
[347397247,1735762267674,-500.0,0.00020821,3]
[347397248,1735762267684,-500.0,0.00020821,3]
[347397249,1735762267693,-851.76,0.00020821,3]
[347397250,1735762267703,-500.0,0.00020821,3]
[347397251,1735762267712,-500.0,0.00020821,3]
[347397252,1735762267722,-500.0,0.00020821,3]
[347397253,1735762267731,-500.0,0.00020821,3]
[347397254,1735762267741,-1500.23,0.00020821,3]
[347397255,1735762267750,-294.04532813,0.00020821,3]
[347397256,1735762267760,-233.95,0.00020821,3]
[347397257,1735762267769,-1089.57,0.00020821,3]
[347397258,1735762267778,-500.0,0.00020821,3]
[347397259,1735762267788,-500.0,0.00020821,3]
[347397260,1735762267797,-314.74108468,0.00020821,3]
[347397261,1735762267807,-500.0,0.00020821,3]
[347397262,1735762267816,-500.0,0.00020821,3]
[347397263,1735762267826,-500.0,0.00020821,3]
[347397264,1735762267836,-500.0,0.00020821,3]
[347397265,1735762267846,-500.0,0.00020821,3]
[347397266,1735762267856,-1120.0,0.00020821,3]
[347397267,1735762267865,-2032.53,0.00020821,3]
[347397268,1735762267875,-641.29,0.00020821,3]
[347397269,1735762267884,-500.0,0.00020821,3]
[347397270,1735762267893,-500.0,0.00020821,3]
[347397271,1735762267903,-500.0,0.00020821,3]
[347397272,1735762267914,-976.67,0.00020821,3]
[347397273,1735762267924,-500.0,0.00020821,3]
[347397274,1735762267933,-777.31,0.00020821,3]
[347397275,1735762267942,-6757.83,0.00020821,3]
[347397276,1735762267953,-500.0,0.00020821,3]
[347397277,1735762267962,-847.67,0.00020821,3]
[347397278,1735762267972,-500.0,0.00020821,3]
[347397279,1735762267982,-507.61964064,0.00020821,3]
[347397280,1735762267992,-500.0,0.00020821,3]
[347397281,1735762268002,-651.91,0.00020821,2]
[347397282,1735762268011,-575.27,0.00020821,3]
[347397283,1735762268020,-500.0,0.00020821,3]
[347397284,1735762268030,-500.0,0.00020821,3]
[347397285,1735762268039,-584.88018895,0.00020821,3]
[347397286,1735762268048,-500.0,0.00020821,3]
[347397287,1735762268059,-1295.31,0.00020821,3]
[347397288,1735762268069,-500.0,0.00020821,3]
[347397289,1735762268079,-500.0,0.00020821,3]
[347397290,1735762268089,-500.0,0.00020821,3]
[347397291,1735762268099,-500.0,0.00020821,3]
[347397292,1735762268108,-724.32,0.00020821,3]
[347397293,1735762268117,-1999.84,0.00020821,3]